bitfinex-derivatives/quotes_SOLF0:USTF0_20250421
["timestamp","ask_amount","ask_price","bid_price","bid_amount"]
[1745258233245,19.30898985,134.71,134.67,38.4646]
[1745258233945,11.88628985,134.71,134.68,7.4239]
[1745258234146,11.88628985,134.71,134.67,31.04]
[1745258234647,19.30888985,134.71,134.67,38.4643]
[1745258234836,11.88628985,134.71,134.67,31.04]
[1745258235035,0.05394685,134.71,134.65,587.58]
[1745258235240,19.255643,134.7,134.66,7.4248]
[1745258235645,19.255643,134.7,134.65,599.412343]
[1745258236040,7.4233,134.7,134.65,599.412343]
[1745258236248,19.255643,134.7,134.66,7.4249]
[1745258236445,7.4235,134.69,134.66,7.4249]
[1745258236845,7.4235,134.69,134.65,595.0055]
[1745258237652,7.4235,134.69,134.66,7.4251]
[1745258237838,7.4235,134.69,134.65,587.58]
[1745258238646,11.832343,134.66,134.6,33.0668]
[1745258238947,11.832343,134.68,134.62,11.832343]
[1745258239142,0.04724648,134.64,134.63,7.4266]
[1745258239342,11.832343,134.67,134.61,11.832343]
[1745258239543,0.05586299,134.65,134.61,11.832343]
[1745258239751,0.05586299,134.65,134.63,7.4265]
[1745258240252,0.05586299,134.65,134.61,11.832343]
[1745258240549,11.88820599,134.65,134.6,42.892343]
[1745258240747,7.4264,134.64,134.6,42.892343]
[1745258240951,11.88820599,134.65,134.6,42.892343]
[1745258241452,11.88820599,134.65,134.61,7.4276]
[1745258242053,19.31420599,134.65,134.61,7.4276]
[1745258242351,11.88820599,134.65,134.61,7.4276]
[1745258242552,19.31420599,134.65,134.61,7.4276]
[1745258242748,11.88820599,134.65,134.6,38.4883]
[1745258243248,7.4266,134.64,134.6,38.4883]
[1745258243449,11.88820599,134.65,134.6,31.06]
[1745258243844,19.259443,134.63,134.6,38.4885]
[1745258245452,0.05586299,134.65,134.6,42.892343]
[1745258245954,7.48186299,134.65,134.61,7.4277]
[1745258246251,11.832343,134.64,134.6,42.892343]
[1745258246556,19.258643,134.64,134.61,7.4277]
[1745258247655,11.832343,134.64,134.62,7.4272]
[1745258247858,11.832343,134.64,134.6,31.06]
[1745258248053,11.832343,134.64,134.6,42.892343]
[1745258248457,11.832343,134.64,134.6,31.06]
[1745258248860,11.832343,134.64,134.61,7.4277]
[1745258249254,7.48186299,134.65,134.6,31.06]
[1745258249458,11.88820599,134.65,134.62,7.427]
[1745258249661,11.88820599,134.65,134.6,31.06]
[1745258249958,11.832343,134.63,134.57,619.38]
[1745258250162,11.832343,134.61,134.54,33.521]
[1745258250459,11.88595167,134.61,134.54,45.353343]
[1745258250659,11.88595167,134.61,134.58,7.4294]
[1745258251155,19.31395167,134.61,134.58,7.4294]
[1745258251361,11.88595167,134.61,134.56,11.832343]
[1745258252162,11.88595167,134.61,134.58,7.4293]
[1745258253865,19.31395167,134.61,134.57,7.4299]
[1745258254058,11.88595167,134.61,134.55,16.009843]
[1745258254765,19.31415167,134.61,134.57,7.4301]
[1745258256167,7.4286,134.6,134.57,7.4301]
[1745258256770,19.31405167,134.61,134.57,7.4301]
[1745258257865,11.88595167,134.61,134.57,7.4301]
[1745258258070,7.4285,134.6,134.55,16.009843]
[1745258258270,11.88595167,134.61,134.55,4.1775]
[1745258258468,11.88595167,134.61,134.55,16.009843]
[1745258259169,11.88595167,134.61,134.55,11.832343]
[1745258259372,7.4294,134.59,134.55,11.832343]
[1745258259873,7.4294,134.59,134.55,7.431]
[1745258260073,7.4294,134.59,134.54,45.353343]
[1745258260573,0.04870422,134.58,134.54,45.353343]
[1745258260876,0.04870422,134.58,134.56,11.832343]
[1745258261674,0.04870422,134.58,134.57,7.4301]
[1745258265676,11.832343,134.62,134.56,11.832343]
[1745258265866,11.832343,134.62,134.54,33.521]
[1745258266071,7.4282,134.61,134.57,7.4299]
[1745258266378,11.832343,134.62,134.56,11.832343]
[1745258266766,11.832343,134.62,134.54,33.521]
[1745258266767,0.05494901,134.6,134.58,0.05291731]
[1745258267376,11.88729201,134.6,134.58,0.05291731]
[1745258267974,7.429,134.59,134.58,0.05291731]
[1745258268779,7.4297,134.58,134.54,31.52]
[1745258268975,11.88729201,134.6,134.54,31.52]
[1745258269171,11.832343,134.58,134.54,31.52]
[1745258269379,11.832343,134.58,134.51,11.832343]
[1745258269577,11.832343,134.58,134.52,31.44]
[1745258269976,7.48334494,134.56,134.52,38.8726]
[1745258270177,7.48334494,134.56,134.52,31.44]
[1745258270374,0.05264494,134.56,134.52,31.44]
[1745258270679,0.05264494,134.56,134.53,7.4319]
[1745258271181,0.05264494,134.56,134.52,31.44]
[1745258271881,0.05264494,134.56,134.53,7.4321]
[1745258273683,0.05264494,134.56,134.54,7.4316]
[1745258273882,0.05264494,134.56,134.52,31.44]
[1745258274182,0.05264494,134.56,134.52,43.272343]
[1745258274382,0.05264494,134.56,134.54,7.4315]
[1745258275682,7.48334494,134.56,134.53,7.4321]
[1745258275984,0.05264494,134.56,134.53,7.4321]
[1745258276984,0.05264494,134.56,134.54,7.4316]
[1745258277185,0.05264494,134.56,134.52,43.272343]
[1745258277485,2.1397,134.6,134.52,43.272343]
[1745258277486,11.832343,134.62,134.54,11.832343]
[1745258277682,11.832343,134.62,134.52,31.44]
[1745258277683,19.261043,134.6,134.53,2.0863]
[1745258277882,11.832343,134.6,134.54,11.832343]
[1745258278078,11.832343,134.6,134.57,7.4299]
[1745258278584,11.88091531,134.6,134.57,7.48628961]
[1745258278981,0.04857231,134.6,134.58,7.4295]
[1745258279176,11.832343,134.59,134.57,0.05638961]
[1745258279484,19.261743,134.59,134.57,0.05638961]
[1745258280682,0.04857231,134.6,134.57,0.05638961]
[1745258281281,0.04857231,134.6,134.57,7.48618961]
[1745258281685,1.29336777,134.67,134.59,11.832343]
[1745258281881,11.832343,134.64,134.59,11.832343]
[1745258282082,11.832343,134.64,134.58,43.272343]
[1745258282287,11.832343,134.62,134.58,31.44]
[1745258282784,11.832343,134.62,134.59,7.4287]
[1745258282980,0.04768332,134.61,134.59,7.47759457]
[1745258283789,0.04768332,134.61,134.59,0.04889457]
[1745258284086,11.832343,134.6,134.59,0.04889457]
[1745258284482,19.260843,134.6,134.59,0.04889457]
[1745258285287,7.4294,134.59,134.55,7.431]
[1745258285479,11.832343,134.58,134.55,7.431]
[1745258285685,11.832343,134.56,134.53,38.8719]
[1745258286387,11.832343,134.58,134.53,38.8719]
[1745258286577,11.88172718,134.56,134.53,38.92293464]
[1745258286779,0.04938418,134.56,134.53,38.92293464]
[1745258287383,7.48008418,134.56,134.53,31.49103464]
[1745258287589,0.04938418,134.56,134.53,0.05103464]
[1745258287986,0.04938418,134.56,134.53,11.88337764]
[1745258288588,0.04938418,134.56,134.53,19.31547764]
[1745258289089,0.04938418,134.56,134.53,0.05103464]
[1745258289288,11.88172718,134.56,134.53,0.05103464]
[1745258289487,0.04938418,134.56,134.53,0.05103464]
[1745258290185,7.48008418,134.56,134.53,0.05103464]
[1745258290793,0.04938418,134.56,134.53,7.48323464]
[1745258291091,0.04938418,134.56,134.53,0.05103464]
[1745258291291,0.04938418,134.56,134.53,7.48303464]
[1745258291895,0.04938418,134.56,134.55,7.4312]
[1745258292394,0.04938418,134.56,134.54,7.4316]
[1745258293391,0.04938418,134.56,134.54,41.1316]
[1745258294389,0.04938418,134.56,134.55,7.4312]
[1745258295498,135.44611836,134.62,134.57,7.4296]
[1745258295793,19.260543,134.61,134.57,7.4296]
[1745258296295,19.260543,134.61,134.58,7.4296]
[1745258296499,11.832343,134.61,134.58,7.4296]
[1745258296698,11.88399775,134.61,134.58,7.48368581]
[1745258297199,19.31219775,134.61,134.58,0.05408581]
[1745258297500,11.88399775,134.61,134.58,0.05408581]
[1745258297800,19.31199775,134.61,134.58,0.05408581]
[1745258300199,11.88399775,134.61,134.58,0.05408581]
[1745258300395,11.88399775,134.61,134.58,7.48368581]
[1745258300595,0.05165475,134.61,134.58,0.05408581]
[1745258300995,0.05165475,134.61,134.6,7.4285]
[1745258309400,0.05165475,134.61,134.59,7.4287]
[1745258312307,0.05165475,134.61,134.58,7.48358581]
[1745258314406,0.05165475,134.61,134.59,7.429]
[1745258314610,0.05165475,134.61,134.58,0.05408581]
[1745258315708,0.05165475,134.61,134.58,7.48328581]
[1745258318707,0.05165475,134.61,134.59,7.429]
[1745258321807,0.05165475,134.61,134.58,7.48338581]
[1745258322411,0.05165475,134.61,134.58,0.05408581]
[1745258322813,11.88399775,134.61,134.58,0.05408581]
[1745258323016,11.88399775,134.61,134.58,7.48338581]
[1745258324017,11.88399775,134.61,134.59,7.429]
[1745258324315,0.05165475,134.61,134.59,7.429]
[1745258324717,0.05165475,134.61,134.58,7.48338581]
[1745258325320,0.05165475,134.61,134.59,7.429]
[1745258325714,0.05165475,134.61,134.6,7.4285]
[1745258329221,135.44611836,134.67,134.6,44.412343]
[1745258329422,11.832343,134.69,134.64,11.832343]
[1745258329614,11.832343,134.69,134.64,44.412343]
[1745258330015,1.9428,134.7,134.64,44.412343]
[1745258330321,11.832343,134.71,134.67,7.4246]
[1745258330722,0.0484723,134.69,134.67,7.4246]
[1745258334623,7.23e-05,134.69,134.68,7.4241]
[1745258334818,7.4194,134.77,134.68,7.4241]
[1745258334819,2.035,134.77,134.68,44.412343]
[1745258335020,2.035,134.77,134.72,11.832343]
[1745258335223,21.286443,134.77,134.73,7.421]
[1745258335422,2.035,134.77,134.72,44.412343]
[1745258336024,0.04974122,134.76,134.73,7.4679314]
[1745258336926,11.832343,134.74,134.73,0.0469314]
[1745258337328,19.30208422,134.76,134.73,0.0469314]
[1745258337528,11.88208422,134.76,134.73,0.0469314]
[1745258337925,7.4205,134.75,134.73,0.0469314]
[1745258338633,0.04974122,134.76,134.73,0.0469314]
[1745258339432,0.04974122,134.76,134.73,7.4679314]
[1745258340339,7.46944122,134.76,134.73,7.4679314]
[1745258341142,0.04974122,134.76,134.73,7.4679314]
[1745258341842,7.46954122,134.76,134.73,7.4679314]
[1745258342042,7.46954122,134.76,134.73,0.0469314]
[1745258342345,19.252643,134.75,134.73,0.0469314]
[1745258342839,7.4208,134.74,134.73,0.0469314]
[1745258343144,11.832343,134.75,134.69,32.56]
[1745258343347,11.832343,134.73,134.69,32.56]
[1745258343944,7.4221,134.72,134.69,39.9832]
[1745258344139,7.47701772,134.72,134.7,0.05341565]
[1745258344441,0.05491772,134.72,134.7,0.05341565]
[1745258344644,0.05491772,134.72,134.7,7.47631565]
[1745258345842,0.05491772,134.72,134.7,0.05341565]
[1745258346945,7.47681772,134.72,134.7,0.05341565]
[1745258349146,0.05491772,134.72,134.7,0.05341565]
[1745258349646,7.47691772,134.72,134.7,0.05341565]
[1745258349847,0.05491772,134.72,134.7,0.05341565]
[1745258350147,7.4242,134.68,134.64,31.74]
[1745258350645,11.832343,134.69,134.64,39.166]
[1745258350845,7.4243,134.68,134.64,39.166]
[1745258351147,0.05675558,134.67,134.65,0.05009363]
[1745258351344,0.05675558,134.67,134.65,7.47579363]
[1745258352749,0.05675558,134.67,134.65,7.47569363]
[1745258352947,0.05675558,134.67,134.66,11.832343]
[1745258353148,0.05675558,134.67,134.66,19.257543]
[1745258353449,0.05675558,134.67,134.66,7.4252]
[1745258355151,4.0372,134.72,134.69,7.4231]
[1745258355450,13.880343,134.73,134.69,7.4231]
[1745258355953,21.302043,134.73,134.69,7.4231]
[1745258356351,0.04969946,134.72,134.7,0.05388789]
[1745258356650,7.47159946,134.72,134.7,0.05388789]
[1745258356947,0.04969946,134.72,134.7,0.05388789]
[1745258358152,7.47159946,134.72,134.7,0.05388789]
[1745258358354,11.832343,134.71,134.7,0.05388789]
[1745258358553,19.254743,134.71,134.7,0.05388789]
[1745258359254,11.832343,134.71,134.65,31.74]
[1745258359654,11.832343,134.71,134.67,7.4243]
[1745258359855,19.255043,134.71,134.65,31.74]
[1745258360055,19.255043,134.71,134.66,11.832343]
[1745258360255,19.255043,134.71,134.67,7.4243]
[1745258360447,19.255043,134.71,134.67,0.05318291]
[1745258361256,19.255043,134.71,134.68,7.4239]
[1745258361457,7.4233,134.7,134.67,0.05318291]
[1745258361755,11.832343,134.71,134.67,7.47748291]
[1745258362154,19.255043,134.71,134.67,7.47748291]
[1745258362757,0.04969946,134.72,134.67,0.05318291]
[1745258363155,7.47159946,134.72,134.68,7.4237]
[1745258363355,7.47159946,134.72,134.69,31.74]
[1745258363755,7.47159946,134.72,134.69,39.1634]
[1745258364057,7.47159946,134.72,134.69,31.74]
[1745258364256,19.30394246,134.72,134.69,31.74]
[1745258364457,11.88204246,134.72,134.69,31.74]
[1745258364859,7.423,134.7,134.67,7.47758291]
[1745258366962,7.4227,134.71,134.67,7.47758291]
[1745258367363,11.88204246,134.72,134.67,7.47758291]
[1745258367566,19.30424246,134.72,134.68,7.424]
[1745258367765,11.88204246,134.72,134.67,0.05318291]
[1745258368064,11.88204246,134.72,134.69,7.4234]
[1745258368666,11.88204246,134.72,134.68,11.832343]
[1745258368867,11.88204246,134.72,134.69,7.4234]
[1745258369672,0.04969946,134.72,134.68,11.832343]
[1745258370167,0.04969946,134.72,134.71,7.4224]
[1745258371266,0.04969946,134.72,134.71,19.254743]
[1745258373172,17.902943,134.8,134.71,11.832343]
[1745258373369,17.902943,134.8,134.75,11.832343]
[1745258373571,17.902943,134.8,134.75,43.572343]
[1745258373873,6.0706,134.8,134.75,43.572343]
[1745258374170,6.0706,134.8,134.77,7.4188]
[1745258374371,0.05170837,134.79,134.77,7.4188]
[1745258374580,11.832343,134.78,134.76,0.04965002]
[1745258375173,0.05170837,134.79,134.76,11.88199302]
[1745258375373,0.05170837,134.79,134.77,7.4188]
[1745258377480,0.05170837,134.79,134.76,11.88199302]
[1745258377481,0.05170837,134.79,134.76,7.46905002]
[1745258378077,0.05170837,134.79,134.77,7.419]
[1745258380379,11.88405137,134.79,134.76,0.04965002]
[1745258381178,7.4189,134.78,134.76,0.04965002]
[1745258382075,19.30215137,134.79,134.76,0.04965002]
[1745258382483,0.05170837,134.79,134.76,0.04965002]
[1745258382881,0.05170837,134.79,134.76,7.46905002]
[1745258383780,11.832343,134.78,134.76,0.04965002]
[1745258384484,11.832343,134.78,134.7,31.5]
[1745258384683,11.832343,134.74,134.7,31.5]
[1745258385085,19.253443,134.74,134.71,7.4224]
[1745258385385,19.253443,134.74,134.7,31.5]
[1745258385684,19.30922083,134.74,134.71,0.05284007]
[1745258386080,7.4214,134.73,134.71,0.05284007]
[1745258386385,11.88812083,134.74,134.71,7.47524007]
[1745258386784,19.30922083,134.74,134.71,7.47524007]
[1745258387688,0.05577783,134.74,134.72,7.4217]
[1745258390692,0.05577783,134.74,134.71,7.47494007]
[1745258391693,0.05577783,134.74,134.72,7.4218]
[1745258393990,11.88812083,134.74,134.71,7.47494007]
[1745258394586,19.30912083,134.74,134.71,7.47494007]
[1745258395284,7.4213,134.73,134.71,0.05284007]
[1745258395486,11.832343,134.72,134.71,0.05284007]
[1745258396496,11.88812083,134.74,134.71,0.05284007]
[1745258396893,19.30922083,134.74,134.71,0.05284007]
[1745258397098,19.30922083,134.74,134.71,7.47494007]
[1745258397597,11.88812083,134.74,134.71,7.47494007]
[1745258398200,19.30892083,134.74,134.71,7.47494007]
[1745258398496,0.05577783,134.74,134.71,7.47494007]
[1745258398701,0.05577783,134.74,134.72,7.4218]
[1745258398897,0.05577783,134.74,134.71,0.05284007]
[1745258399200,0.05577783,134.74,134.71,7.47484007]
[1745258399500,0.05577783,134.74,134.71,0.05284007]
[1745258400698,11.832343,134.73,134.71,0.05284007]
[1745258400894,11.832343,134.73,134.65,52.63653]
[1745258401101,11.832343,134.71,134.65,84.13653]
[1745258401803,7.4236,134.69,134.66,7.4249]
[1745258402098,11.8848877,134.69,134.66,0.05304111]
[1745258402698,11.832343,134.67,134.66,0.05304111]
[1745258402897,11.832343,134.67,134.65,52.63653]
[1745258403098,11.832343,134.67,134.65,39.75273]
[1745258403304,18.5253858,134.67,134.59,31.5]
[1745258403499,7.4259,134.65,134.61,7.4276]
[1745258403700,7.4259,134.65,134.59,31.5]
[1745258404001,7.4264,134.64,134.59,31.5]
[1745258404205,0.0567096,134.63,134.59,31.5]
[1745258404400,0.0567096,134.63,134.57,3.9609]
[1745258404701,7.4277,134.62,134.56,31.5]
[1745258404898,0.0567096,134.63,134.56,50.0253858]
[1745258405104,0.0567096,134.63,134.58,18.5253858]
[1745258405499,0.0567096,134.63,134.61,7.4276]
[1745258406105,0.0567096,134.63,134.62,7.4274]
[1745258406305,0.0567096,134.63,134.6,31.5]
[1745258406806,18.5253858,134.67,134.65,44.9930104]
[1745258407209,7.4252,134.66,134.65,44.9930104]
[1745258407396,166.94611836,134.68,134.65,44.9930104]
[1745258407603,50.0253858,134.71,134.65,44.9930104]
[1745258407903,0.04990692,134.69,134.67,0.05316032]
[1745258408296,18.57529272,134.69,134.67,0.05316032]
[1745258408501,7.4241,134.68,134.67,0.05316032]
[1745258408701,0.04990692,134.69,134.67,0.05316032]
[1745258408901,0.04990692,134.69,134.67,7.47776032]
[1745258409402,7.47350692,134.69,134.67,7.47776032]
[1745258409597,7.47350692,134.69,134.67,0.05316032]
[1745258410208,7.4241,134.68,134.67,0.05316032]
[1745258410706,7.4252,134.66,134.65,44.9930104]
[1745258418217,31.14,134.66,134.57,31.14]
[1745258418516,18.5253858,134.64,134.58,7.4294]
[1745258418715,7.4284,134.61,134.58,7.4294]
[1745258418915,0.04961112,134.63,134.58,7.4294]
[1745258419519,0.04961112,134.63,134.59,7.429]
[1745258419719,7.4279,134.61,134.59,7.429]
[1745258420918,7.4279,134.61,134.58,7.4293]
[1745258421118,7.4277,134.62,134.57,31.14]
[1745258421417,7.4277,134.62,134.58,7.4293]
[1745258421617,7.47661112,134.63,134.57,31.14]
[1745258422415,0.04961112,134.63,134.57,31.14]
[1745258422617,10.81,134.66,134.6,18.5253858]
[1745258422820,10.81,134.66,134.64,7.4259]
[1745258423321,7.5875,134.66,134.65,38.5657]
[1745258423624,19.7,134.67,134.65,31.14]
[1745258423920,19.75527191,134.67,134.66,7.4252]
[1745258424513,0.05527191,134.67,134.66,7.4252]
[1745258425220,0.05527191,134.67,134.65,31.14]
[1745258425525,0.05527191,134.67,134.64,0.05630272]
[1745258425819,7.4257,134.65,134.64,0.05630272]
[1745258426524,7.4272,134.63,134.59,31.14]
[1745258426724,18.5253858,134.62,134.55,31.14]
[1745258427220,49.6653858,134.64,134.55,31.14]
[1745258427722,0.05652451,134.61,134.55,31.14]
[1745258428118,0.05652451,134.61,134.57,18.5253858]
[1745258428318,15.76,134.62,134.61,7.4279]
[1745258428517,15.76,134.62,134.61,38.5679]
[1745258428820,15.76,134.62,134.61,31.14]
[1745258429423,15.76,134.62,134.61,38.5679]
[1745258429623,15.76,134.62,134.61,31.14]
[1745258429922,15.76,134.62,134.61,38.5679]
[1745258430123,0.05463259,134.63,134.61,31.14]
[1745258430629,0.05463259,134.63,134.61,38.5677]
[1745258431123,0.05463259,134.63,134.6,0.05109666]
[1745258431626,7.4275,134.62,134.6,0.05109666]
[1745258432426,49.72001839,134.63,134.58,7.4295]
[1745258432621,3.9818,134.62,134.58,7.4295]
[1745258432821,18.5253858,134.61,134.55,31.14]
[1745258433020,18.5253858,134.61,134.57,7.4299]
[1745258433521,7.47935518,134.6,134.57,7.4299]
[1745258433930,7.429,134.59,134.57,7.4299]
[1745258434228,7.429,134.59,134.56,7.4304]
[1745258434825,7.47925518,134.6,134.55,31.14]
[1745258435018,18.5253858,134.59,134.52,31.14]
[1745258435526,0.05217933,134.57,134.52,49.6653858]
[1745258435728,0.05217933,134.57,134.52,31.14]
[1745258435930,0.05217933,134.57,134.52,49.6653858]
[1745258436230,0.05217933,134.57,134.56,7.4307]
[1745258438029,0.05217933,134.57,134.56,38.5707]
[1745258439533,0.05217933,134.57,134.53,31.14]
[1745258440035,0.05217933,134.57,134.56,7.4307]
[1745258441235,1.9775,134.62,134.58,7.4291]
[1745258441734,7.4283,134.61,134.57,31.14]
[1745258441931,7.4283,134.61,134.58,7.4295]
[1745258442435,7.47935045,134.61,134.58,7.48449211]
[1745258442835,7.4287,134.6,134.58,0.05499211]
[1745258445737,7.4287,134.6,134.58,7.48449211]
[1745258445937,0.05105045,134.61,134.58,0.05499211]
[1745258446439,7.429,134.59,134.58,0.05499211]
[1745258447935,0.05105045,134.61,134.58,0.05499211]
[1745258448141,0.05105045,134.61,134.6,7.4285]
[1745258450241,7.47935045,134.61,134.58,0.05499211]
[1745258450539,7.47935045,134.61,134.58,7.48419211]
[1745258451141,0.05105045,134.61,134.58,0.05499211]
[1745258451734,0.05105045,134.61,134.6,7.4285]
[1745258452742,0.05105045,134.61,134.59,7.4289]
[1745258453038,0.05105045,134.61,134.58,2.14699211]
[1745258453238,0.05105045,134.61,134.58,0.05499211]
[1745258454539,7.47935045,134.61,134.58,7.48419211]
[1745258455241,18.57643625,134.61,134.58,0.05499211]
[1745258455649,18.57643625,134.61,134.54,31.14]
[1745258455841,4.1071,134.6,134.54,31.14]
[1745258456848,7.4301,134.58,134.54,38.5714]
[1745258457141,4.1071,134.6,134.54,38.5714]
[1745258457347,0.04734012,134.57,134.54,7.4314]
[1745258457547,0.04734012,134.57,134.51,31.14]
[1745258457945,0.04734012,134.57,134.56,7.4307]
[1745258458444,0.04734012,134.57,134.52,20.6306858]
[1745258458644,7.47754012,134.57,134.52,2.1053]
[1745258458949,0.04734012,134.57,134.5,2.0285]
[1745258459148,7.4315,134.55,134.51,31.14]
[1745258459348,0.04734012,134.57,134.51,31.14]
[1745258459847,7.4316,134.55,134.51,38.5733]
[1745258460050,7.4316,134.55,134.51,31.14]
[1745258460243,0.04734012,134.57,134.51,31.14]
[1745258460458,7.47784012,134.57,134.53,7.432]
[1745258460651,0.04734012,134.57,134.51,31.14]
[1745258460956,0.04734012,134.57,134.51,38.5731]
[1745258461152,0.04734012,134.57,134.51,31.14]
[1745258462658,7.4319,134.54,134.51,38.5732]
[1745258463052,7.4329,134.52,134.51,31.14]
[1745258463251,0.04901617,134.54,134.51,31.14]
[1745258463654,7.4323,134.53,134.51,31.14]
[1745258464156,0.04901617,134.54,134.49,7.4343]
[1745258464458,0.04901617,134.54,134.49,38.5743]
[1745258464757,7.4332,134.52,134.49,38.5743]
[1745258465861,0.04901617,134.54,134.49,38.5743]
[1745258466057,0.04901617,134.54,134.5,7.4339]
[1745258466266,7.4327,134.53,134.49,31.14]
[1745258466559,7.4327,134.53,134.5,7.4337]
[1745258466756,0.04901617,134.54,134.5,18.5253858]
[1745258467560,0.04901617,134.54,134.53,7.4323]
[1745258467760,0.04901617,134.54,134.5,18.5253858]
[1745258469259,0.04901617,134.54,134.53,7.4323]
[1745258469463,0.04901617,134.54,134.53,38.5923]
[1745258469665,0.04901617,134.54,134.53,31.16]
[1745258471463,7.48081617,134.54,134.53,31.16]
[1745258471868,0.04901617,134.54,134.53,31.16]
[1745258472770,7.48081617,134.54,134.53,31.16]
[1745258472968,0.04901617,134.54,134.5,38.5935]
[1745258473169,0.04901617,134.54,134.5,31.16]
[1745258473370,7.4333,134.52,134.5,31.16]
[1745258474168,7.4333,134.52,134.5,38.5939]
[1745258475468,7.4333,134.52,134.5,31.16]
[1745258475670,0.04901617,134.54,134.5,31.16]
[1745258475974,0.04901617,134.54,134.5,49.6853858]
[1745258476271,0.04901617,134.54,134.5,31.16]
[1745258476769,0.04901617,134.54,134.52,7.4326]
[1745258476977,0.04901617,134.54,134.5,31.16]
[1745258477372,0.04901617,134.54,134.51,7.4333]
[1745258477874,7.48101617,134.54,134.51,7.4333]
[1745258479277,0.04901617,134.54,134.52,7.4329]
[1745258480276,7.48081617,134.54,134.52,7.4329]
[1745258480576,0.04901617,134.54,134.52,7.4329]
[1745258481279,0.04901617,134.54,134.51,7.433]
[1745258481478,0.04901617,134.54,134.47,2.1084]
[1745258481874,0.04901617,134.54,134.48,7.4348]
[1745258482074,7.4335,134.51,134.47,2.1084]
[1745258482479,0.05501672,134.5,134.47,2.1084]
[1745258483078,0.05501672,134.5,134.48,7.435]
[1745258483472,0.05501672,134.5,134.47,2.1084]
[1745258483678,0.05501672,134.5,134.47,9.5437]
[1745258483982,0.05501672,134.5,134.43,31.16]
[1745258484183,18.5253858,134.53,134.45,7.4366]
[1745258484381,18.5253858,134.53,134.43,49.6853858]
[1745258484382,0.05590041,134.48,134.43,49.6853858]
[1745258484779,0.05590041,134.48,134.46,7.4361]
[1745258484983,0.05590041,134.48,134.45,18.5253858]
[1745258485282,0.05590041,134.48,134.47,31.16]
[1745258485875,0.05590041,134.48,134.47,38.5957]
[1745258487486,0.05590041,134.48,134.47,31.16]
[1745258487781,0.05590041,134.48,134.47,38.5957]
[1745258488282,0.05590041,134.48,134.47,31.16]
[1745258488882,0.05590041,134.48,134.47,38.5957]
[1745258491882,0.05590041,134.48,134.47,31.16]
[1745258493977,0.05590041,134.48,134.47,38.5957]
[1745258496988,18.08,134.52,134.47,31.16]
[1745258497489,25.5131,134.52,134.49,7.4343]
[1745258498177,7.4335,134.51,134.49,0.05160838]
[1745258498378,18.12758441,134.52,134.49,0.05160838]
[1745258498787,18.12758441,134.52,134.5,7.4337]
[1745258498979,0.04758441,134.52,134.5,7.4337]
[1745258499586,105.11285,134.55,134.51,49.6853858]
[1745258499781,105.11285,134.55,134.51,31.16]
[1745258499988,105.11285,134.55,134.53,18.5253858]
[1745258500185,105.11285,134.55,134.54,7.4318]
[1745258501489,18.5253858,134.62,134.54,7.4318]
[1745258501490,70.01698887,134.66,134.54,7.44]
[1745258501684,4.0002,134.64,134.58,18.5253858]
[1745258501888,2.0282,134.66,134.62,7.4274]
[1745258502090,2.0282,134.66,134.6,18.5253858]
[1745258502290,2.0282,134.66,134.59,33.1166]
[1745258502588,0.05092717,134.64,134.62,18.5253858]
[1745258502781,0.05092717,134.64,134.63,31.16]
[1745258502982,28.28457082,134.7,134.63,31.16]
[1745258502983,26.25637082,134.7,134.63,31.16]
[1745258503191,17.7,134.68,134.64,18.5253858]
[1745258503586,17.7,134.68,134.66,7.4248]
[1745258503888,17.7,134.68,134.67,31.16]
[1745258504185,17.75424163,134.68,134.67,31.16]
[1745258506791,0.05424163,134.68,134.67,31.16]
[1745258507797,0.05424163,134.68,134.67,38.5846]
[1745258508898,4.1178,134.74,134.67,31.16]
[1745258509089,22.6431858,134.74,134.64,18.5253858]
[1745258509295,7.4233,134.7,134.65,31.14]
[1745258509495,7.4233,134.7,134.67,7.4245]
[1745258510198,7.47174426,134.7,134.67,0.04711374]
[1745258510397,7.4238,134.69,134.67,0.04711374]
[1745258510692,18.57383006,134.7,134.6,18.5253858]